bitfinex-derivatives/quotes_SOLF0:USTF0_20260226
["timestamp","ask_amount","ask_price","bid_price","bid_amount"]
[1772103145349,20.5993,87.379,87.289,9.40582249]
[1772103145350,3.02068083,87.33,87.289,9.40582249]
[1772103151554,10.3047,87.336,87.289,9.40582249]
[1772103151755,8.58031856,87.378,87.251,28.14508741]
[1772103151756,3.02068083,87.34,87.291,9.35282296]
[1772103152952,3.02068083,87.34,87.293,9.3492535]
[1772103154750,10.3044,87.338,87.293,9.3492535]
[1772103160262,8.58031856,87.378,87.252,9.35986977]
[1772103160462,8.58031856,87.378,87.231,20.6339]
[1772103160463,3.02068083,87.32,87.27,3.02068083]
[1772103160760,3.02068083,87.32,87.271,9.35850724]
[1772103161365,3.02068083,87.33,87.279,9.35850724]
[1772103162954,3.02068083,87.33,87.245,28.14508741]
[1772103162955,13.32618083,87.33,87.282,9.28808607]
[1772103164465,13.32618083,87.33,87.285,9.28847476]
[1772103165063,10.3055,87.33,87.285,9.28847476]
[1772103166766,13.32618083,87.33,87.285,9.28847476]
[1772103168365,13.32618083,87.33,87.287,9.31495079]
[1772103168569,10.3061,87.324,87.287,9.31495079]
[1772103169065,3.02068083,87.34,87.291,9.31495079]
[1772103169766,10.3052,87.332,87.292,9.31495079]
[1772103171771,10.306,87.325,87.292,9.31495079]
[1772103172176,3.02068083,87.33,87.292,9.31495079]
[1772103172364,3.02068083,87.33,87.248,20.6301]
[1772103172365,3.02068083,87.3,87.256,9.3449818]
[1772103172967,10.3103,87.288,87.256,9.3449818]
[1772103173476,10.3096,87.295,87.256,9.3449818]
[1772103173675,3.02375274,87.3,87.256,9.3449818]
[1772103174177,10.3103,87.289,87.256,9.3449818]
[1772103174476,3.02375274,87.3,87.256,9.3449818]
[1772103174671,3.02375274,87.29,87.256,9.3449818]
[1772103174873,3.02375274,87.3,87.256,9.3449818]
[1772103175574,10.3116,87.278,87.256,8.18e-05]
[1772103176578,10.3124,87.271,87.23,3.02375274]
[1772103176780,20.6137,87.318,87.23,3.02375274]
[1772103176977,3.02375274,87.29,87.23,3.02375274]
[1772103177378,10.3115,87.279,87.24,3.02375274]
[1772103177681,10.3115,87.279,87.241,4.72013514]
[1772103179384,10.3125,87.27,87.241,4.72013514]
[1772103179781,10.3111,87.282,87.241,4.72013514]
[1772103180588,10.3119,87.276,87.241,4.72013514]
[1772103180787,10.3119,87.276,87.231,4.72537086]
[1772103181782,3.02375274,87.28,87.231,4.72537086]
[1772103181986,3.02375274,87.28,87.175,34.35]
[1772103181987,3.02375274,87.31,87.251,4.72537086]
[1772103182187,3.02375274,87.31,87.261,4.72537086]
[1772103182387,10.309,87.299,87.261,4.72537086]
[1772103184580,3.02375274,87.3,87.261,4.72537086]
[1772103184786,10.308,87.308,87.261,4.72537086]
[1772103186292,10.3071,87.316,87.261,4.72537086]
[1772103186491,3.02375274,87.34,87.291,4.76987489]
[1772103188887,13.32805274,87.34,87.291,4.76987489]
[1772103189591,3.02375274,87.35,87.293,4.68218771]
[1772103189791,3.02375274,87.34,87.293,4.68218771]
[1772103190386,34.35,87.407,87.234,34.35]
[1772103190592,3.02375274,87.32,87.267,4.69768814]
[1772103191885,3.02375274,87.32,87.271,4.69768814]
[1772103192290,13.32925274,87.33,87.284,4.60668626]
[1772103193292,3.02375274,87.33,87.288,4.60668626]
[1772103193497,10.3044,87.339,87.288,4.60668626]
[1772103194190,10.3044,87.339,87.292,4.60668626]
[1772103195894,3.02375274,87.34,87.294,4.68702058]
[1772103196092,10.3035,87.347,87.294,4.68702058]
[1772103196293,3.02375274,87.34,87.294,4.68702058]
[1772103196999,10.3025,87.355,87.311,4.68380157]
[1772103197195,8.59059212,87.4,87.311,4.68380157]
[1772103197395,3.02375274,87.35,87.311,4.68380157]
[1772103198798,10.302,87.359,87.311,4.68380157]
[1772103199299,3.02375274,87.35,87.311,4.68380157]
[1772103200504,10.302,87.359,87.311,4.68380157]
[1772103200704,3.02375274,87.35,87.311,4.68380157]
[1772103210809,3.02375274,87.33,87.285,4.71407656]
[1772103211005,3.02375274,87.32,87.285,4.71407656]
[1772103211205,3.02375274,87.33,87.285,4.71407656]
[1772103212405,3.02375274,87.32,87.27,4.71809036]
[1772103212613,3.02375274,87.32,87.271,4.71809036]
[1772103213909,13.33035274,87.32,87.272,4.71809036]
[1772103214713,3.02375274,87.32,87.274,4.68448023]
[1772103215913,3.02375274,87.32,87.276,4.68448023]
[1772103216109,3.02375274,87.33,87.28,3.02375274]
[1772103216308,3.02375274,87.34,87.281,4.68448023]
[1772103217208,10.3043,87.339,87.292,4.68778557]
[1772103217607,3.02375274,87.33,87.292,4.68778557]
[1772103217912,3.02375274,87.33,87.294,4.6878945]
[1772103218112,34.35,87.392,87.294,4.6878945]
[1772103218113,3.02375274,87.34,87.294,4.6878945]
[1772103219016,3.02375274,87.34,87.297,4.62876839]
[1772103219510,3.02375274,87.33,87.281,4.62876839]
[1772103220209,3.02375274,87.34,87.281,4.62876839]
[1772103221014,10.3048,87.336,87.284,4.64853737]
[1772103221915,10.3048,87.336,87.286,4.64853737]
[1772103223216,10.3048,87.336,87.284,10.3108]
[1772103223217,3.02375274,87.32,87.273,4.6250487]
[1772103223414,3.02375274,87.33,87.273,4.6250487]
[1772103224217,3.02375274,87.32,87.273,4.6250487]
[1772103226014,3.02375274,87.32,87.275,4.61409729]
[1772103226515,10.3058,87.327,87.278,4.61231487]
[1772103226917,3.02375274,87.34,87.281,4.61231487]
[1772103227111,3.02375274,87.33,87.285,4.61231487]
[1772103228019,10.3056,87.329,87.285,4.61231487]
[1772103228213,3.02375274,87.33,87.285,4.61231487]
[1772103228614,3.02375274,87.32,87.285,4.61231487]
[1772103230120,13.32915274,87.33,87.285,4.61231487]
[1772103230622,10.3062,87.324,87.285,4.61231487]
[1772103231420,3.02375274,87.33,87.285,4.61231487]
[1772103232120,10.3056,87.328,87.285,4.61231487]
[1772103234816,3.0214985,87.33,87.287,4.66607283]
[1772103235216,10.3049,87.335,87.291,4.66607283]
[1772103235415,3.0214985,87.34,87.295,4.66607283]
[1772103236418,10.3044,87.338,87.295,4.66607283]
[1772103244024,3.0214985,87.33,87.295,4.66607283]
[1772103245019,10.3056,87.328,87.295,4.66607283]
[1772103246819,3.0214985,87.34,87.297,4.7041315]
[1772103247027,3.0214985,87.36,87.301,4.7041315]
[1772103247332,3.0214985,87.36,87.311,4.7041315]
[1772103247927,10.3022,87.357,87.312,4.7041315]
[1772103249034,10.3022,87.357,87.315,4.72218146]
[1772103249529,10.3022,87.357,87.317,4.72218146]
[1772103249832,10.3013,87.365,87.32,3.0214985]
[1772103250034,3.0214985,87.38,87.329,4.72218146]
[1772103250827,10.3004,87.373,87.331,4.72168014]
[1772103251023,3.0214985,87.39,87.331,4.72168014]
[1772103251223,3.0214985,87.39,87.341,4.72168014]
[1772103251625,3.0214985,87.4,87.341,4.72168014]
[1772103252027,3.0214985,87.4,87.362,10.3015]
[1772103252231,3.0214985,87.42,87.363,4.72168014]
[1772103252428,3.0214985,87.41,87.363,4.72168014]
[1772103252627,3.0214985,87.4,87.363,4.72168014]
[1772103253836,10.2973,87.399,87.363,4.72168014]
[1772103256637,3.0214985,87.39,87.333,4.69530129]
[1772103256928,10.2991,87.383,87.334,4.70515845]
[1772103257239,3.0214985,87.38,87.334,4.70515845]
[1772103257933,3.0214985,87.37,87.334,4.70515845]
[1772103259136,3.0214985,87.38,87.334,4.70515845]
[1772103260042,3.0214985,87.38,87.337,4.6521095]
[1772103260239,3.0214985,87.38,87.269,34.35]
[1772103260240,3.0214985,87.37,87.321,4.6521095]
[1772103260547,5.14982127,87.41,87.264,34.35]
[1772103260548,3.0214985,87.36,87.309,4.66504124]
[1772103261135,10.302,87.359,87.31,4.66504124]
[1772103261636,10.302,87.359,87.312,4.66504124]
[1772103261839,3.0214985,87.36,87.312,4.66504124]
[1772103262742,3.0214985,87.36,87.315,4.69106095]
[1772103263338,10.302,87.359,87.315,4.69106095]
[1772103266840,3.0214985,87.36,87.315,4.69106095]
[1772103268946,13.3233985,87.36,87.315,4.69106095]
[1772103269339,3.0214985,87.35,87.315,4.69106095]
[1772103273046,10.3026,87.354,87.315,4.69106095]
[1772103273944,3.0214985,87.35,87.315,4.69106095]
[1772103276153,3.0214985,87.33,87.281,4.60056589]
[1772103276453,3.0214985,87.34,87.281,4.60056589]
[1772103277949,10.3043,87.339,87.292,4.58546153]
[1772103278444,10.3043,87.339,87.295,4.61211159]
[1772103278650,10.3035,87.346,87.295,4.61211159]
[1772103279148,3.0214985,87.34,87.295,4.61211159]
[1772103279339,3.0214985,87.34,87.297,4.61211159]
[1772103279340,13.3256985,87.34,87.297,4.61211159]
[1772103279545,3.0214985,87.34,87.297,4.61211159]
[1772103280948,10.305,87.334,87.297,4.61211159]
[1772103281549,10.305,87.334,87.257,20.628]
[1772103281550,3.0214985,87.32,87.285,4.64156052]
[1772103281748,3.0214985,87.33,87.285,4.64156052]
[1772103282047,5.15173155,87.36,87.301,4.64156052]
[1772103282249,10.3032,87.349,87.301,4.64156052]
[1772103282447,3.0214985,87.34,87.281,4.57443298]
[1772103282653,3.0214985,87.33,87.281,4.57443298]
[1772103283260,3.0214985,87.33,87.284,4.57443298]
[1772103288756,3.0214985,87.33,87.288,4.64001995]
[1772103289058,3.0214985,87.34,87.288,4.64001995]
[1772103289261,10.3044,87.339,87.291,4.64001995]
[1772103290151,10.3051,87.333,87.291,4.64001995]
[1772103295466,13.3249856,87.34,87.291,4.64001995]
[1772103296063,10.3034,87.347,87.303,4.62897151]
[1772103296463,3.0207856,87.35,87.303,4.62897151]
[1772103296668,3.0207856,87.37,87.311,4.62774767]
[1772103297165,10.3017,87.362,87.314,4.62774767]
[1772103297967,3.0207856,87.36,87.314,4.62774767]
[1772103298862,3.0207856,87.36,87.318,4.65805625]
[1772103299065,3.0207856,87.37,87.321,4.65805625]
[1772103300667,13.3215856,87.37,87.321,4.65805625]
[1772103302170,3.0207856,87.37,87.321,4.65805625]
[1772103302468,10.2998,87.378,87.321,4.65805625]
[1772103302964,3.0207856,87.38,87.331,4.65291561]
[1772103303264,3.0207856,87.39,87.331,4.65291561]
[1772103303963,10.2984,87.389,87.338,4.65291561]
[1772103304770,10.2984,87.389,87.341,4.62526909]
[1772103305369,3.0207856,87.36,87.316,4.62526909]
[1772103305971,10.302,87.359,87.316,4.62526909]
[1772103307870,3.0207856,87.36,87.318,4.64641424]
[1772103308081,3.0207856,87.37,87.318,4.64641424]
[1772103308879,10.3008,87.369,87.32,10.3065]
[1772103309381,10.3008,87.369,87.321,4.5796621]
[1772103310583,3.0207856,87.36,87.321,4.5796621]
[1772103312983,10.3009,87.369,87.321,4.5796621]
[1772103313683,8.56912964,87.4,87.331,4.62605014]
[1772103313986,3.0207856,87.38,87.331,4.62605014]
[1772103314187,10.2997,87.378,87.332,10.3051]
[1772103314486,10.2997,87.378,87.333,4.62605014]
[1772103315881,10.2997,87.378,87.334,10.3049]
[1772103316083,10.2997,87.378,87.335,4.62953884]
[1772103316487,10.3006,87.371,87.335,4.62953884]
[1772103318388,10.2998,87.378,87.335,4.62953884]
[1772103319689,10.2998,87.378,87.337,4.65541153]
[1772103320385,3.0207856,87.38,87.34,4.65516384]
[1772103320586,10.299,87.385,87.34,4.65516384]
[1772103321690,10.2997,87.379,87.341,4.65516384]
[1772103325696,10.3005,87.371,87.341,4.65516384]
[1772103325897,3.52180688,87.411,87.341,4.65516384]
[1772103326196,3.52180688,87.399,87.341,4.65516384]
[1772103326389,6.54259248,87.39,87.341,4.65516384]
[1772103326590,10.2969,87.402,87.341,4.65516384]
[1772103326787,3.52180688,87.399,87.341,4.65516384]
[1772103326991,3.0207856,87.39,87.341,4.65516384]
[1772103327295,6.54259248,87.39,87.341,4.65516384]
[1772103327493,3.52180688,87.389,87.341,4.65516384]
[1772103327688,3.0207856,87.38,87.341,4.65516384]
[1772103327895,3.52180688,87.379,87.341,4.65516384]
[1772103328094,3.52180688,87.369,87.323,3.59791128]
[1772103328490,3.52180688,87.349,87.301,3.59791128]
[1772103329091,3.52180688,87.349,87.311,3.59791128]
[1772103330198,3.52180688,87.347,87.301,3.59791128]
[1772103333394,3.52180688,87.347,87.31,3.0207856]
[1772103333597,3.52180688,87.359,87.311,3.59791128]
[1772103333799,3.52180688,87.359,87.319,3.59791128]
[1772103333996,3.52180688,87.359,87.321,3.59791128]
[1772103335397,3.52180688,87.374,87.331,3.59791128]
[1772103337101,3.52180688,87.374,87.332,3.54042943]
[1772103337599,3.81250645,87.371,87.325,10.3059]
[1772103337796,3.81250645,87.371,87.326,3.54042943]
[1772103338203,3.81250645,87.371,87.33,3.0207856]
[1772103338397,3.81250645,87.371,87.331,3.54042943]
[1772103338802,3.81250645,87.371,87.332,3.54042943]
[1772103339009,3.81250645,87.383,87.341,3.54042943]
[1772103340008,3.81250645,87.383,87.33,3.0207856]
[1772103340207,3.81250645,87.375,87.334,10.3049]
[1772103341308,3.81250645,87.372,87.327,10.3056]
[1772103342810,3.81250645,87.372,87.327,13.84602943]
[1772103343108,3.81250645,87.372,87.33,3.0207856]
[1772103344610,3.81250645,87.37,87.33,3.0207856]
[1772103345001,3.81250645,87.362,87.32,3.0207856]
[1772103347012,3.81250645,87.362,87.321,3.54042943]
[1772103348108,3.81250645,87.374,87.328,3.54042943]
[1772103348412,3.81250645,87.386,87.341,3.54042943]
[1772103349708,10.2992,87.382,87.341,3.54042943]
[1772103350212,3.81250645,87.386,87.341,3.54042943]
[1772103351911,3.81250645,87.386,87.342,10.3039]
[1772103352816,10.2989,87.385,87.342,10.3039]
[1772103353017,3.81250645,87.384,87.342,10.3039]
[1772103353217,3.81250645,87.384,87.342,13.84432943]
[1772103354414,3.81250645,87.384,87.343,3.54042943]
[1772103354819,10.2989,87.385,87.343,3.54042943]
[1772103355215,3.0207856,87.4,87.343,3.54042943]
[1772103355216,3.81250645,87.382,87.343,3.54042943]
[1772103355619,3.81250645,87.391,87.343,3.54042943]
[1772103355818,17.12786418,87.39,87.344,10.3036]
[1772103356021,17.12786418,87.39,87.345,3.61130848]
[1772103356217,3.60874723,87.389,87.345,3.61130848]
[1772103356911,3.60874723,87.389,87.347,10.3033]
[1772103357618,3.60874723,87.389,87.348,3.61130848]
[1772103357819,3.60874723,87.389,87.349,10.3031]
[1772103358123,3.60874723,87.389,87.351,3.61130848]
[1772103358519,10.2976,87.396,87.351,3.61130848]
[1772103358916,3.60874723,87.393,87.351,13.91410848]
[1772103360428,3.60874723,87.39,87.351,3.61130848]
[1772103360625,3.60874723,87.389,87.351,3.61130848]
[1772103360831,3.60874723,87.379,87.306,3.61130848]
[1772103361028,3.60874723,87.379,87.33,6.62826621]
[1772103361227,3.60874723,87.379,87.331,3.61130848]
[1772103362031,3.60874723,87.379,87.338,3.61130848]
[1772103365236,3.60874723,87.369,87.311,3.61130848]
[1772103365428,6.62570496,87.36,87.311,3.61130848]
[1772103365632,3.60874723,87.359,87.311,3.61130848]
[1772103366227,3.60874723,87.359,87.325,10.306]
[1772103366830,3.60874723,87.339,87.289,3.61130848]
[1772103367032,3.01695773,87.32,87.289,3.61130848]
[1772103367437,3.01695773,87.33,87.289,3.61130848]
[1772103367640,3.60874723,87.339,87.289,3.61130848]
[1772103367834,3.01695773,87.33,87.289,3.61130848]
[1772103368236,3.01695773,87.33,87.291,3.61130848]
[1772103368740,3.60874723,87.339,87.292,10.3098]
[1772103368939,3.60874723,87.339,87.293,3.61130848]
[1772103370332,3.60874723,87.339,87.296,3.61130848]
[1772103372044,3.60874723,87.339,87.29,3.01695773]
[1772103372045,3.60874723,87.339,87.301,3.61130848]
[1772103373540,3.01695773,87.33,87.287,3.61130848]
[1772103374947,10.3048,87.336,87.287,3.61130848]
[1772103376544,3.60874723,87.337,87.289,3.61130848]
[1772103376747,3.60874723,87.337,87.291,3.61130848]
[1772103379443,3.60874723,87.336,87.291,3.61130848]
[1772103381043,10.3055,87.329,87.291,3.61130848]
[1772103382144,3.60874723,87.328,87.291,3.61130848]
[1772103387354,6.68325668,87.34,87.293,3.67888949]
[1772103387549,3.01695773,87.35,87.293,3.67888949]
[1772103387752,3.66629895,87.349,87.293,3.67888949]
[1772103388955,3.66629895,87.349,87.304,13.98728949]
[1772103390457,3.66629895,87.349,87.305,3.67888949]
[1772103391352,3.66629895,87.349,87.307,3.67888949]
[1772103392455,3.66629895,87.349,87.309,13.98668949]
[1772103393557,3.66629895,87.349,87.309,3.67888949]
[1772103394957,3.66629895,87.349,87.309,13.98668949]
[1772103396358,3.66629895,87.349,87.309,3.67888949]
[1772103396657,3.63517728,87.339,87.298,3.73808099]
[1772103398152,3.01695773,87.35,87.301,3.73808099]
[1772103398356,3.63517728,87.352,87.301,3.73808099]
[1772103399851,3.63517728,87.352,87.314,10.3072]
[1772103400055,3.63517728,87.352,87.315,3.73808099]
[1772103401359,3.63517728,87.352,87.317,10.3069]
[1772103401559,3.63517728,87.352,87.317,14.04498099]
[1772103403059,3.01695773,87.35,87.317,3.73808099]
[1772103404565,6.65213501,87.35,87.317,3.73808099]
[1772103404766,3.63517728,87.349,87.317,3.73808099]
[1772103405967,3.63517728,87.348,87.306,3.73808099]
[1772103406367,3.01695773,87.34,87.306,3.73808099]
[1772103406968,3.01695773,87.34,87.307,10.3081]
[1772103407163,3.01695773,87.34,87.307,14.04618099]
[1772103408370,3.01695773,87.34,87.307,3.73808099]
[1772103408561,3.63517728,87.333,87.293,3.73808099]
[1772103408766,3.01695773,87.34,87.293,3.73808099]
[1772103409065,3.01695773,87.34,87.256,39.59415681]
[1772103409066,3.01695773,87.32,87.269,3.73808099]
[1772103409267,13.32235773,87.33,87.281,3.73808099]
[1772103410872,10.3044,87.338,87.291,3.73808099]
[1772103411670,13.93957728,87.338,87.291,3.73808099]
[1772103411967,13.93957728,87.338,87.292,3.73808099]
[1772103412169,3.63517728,87.337,87.292,3.73808099]
[1772103415072,3.63517728,87.337,87.301,3.73808099]
[1772103421590,6.83064253,87.35,87.301,3.73808099]
[1772103422184,3.8101834,87.348,87.301,3.73808099]
[1772103422888,3.8101834,87.348,87.309,3.81756248]
[1772103423191,3.8101834,87.36,87.311,3.81756248]
[1772103423491,3.8101834,87.373,87.321,3.81756248]
[1772103423889,3.8101834,87.373,87.332,3.81756248]
[1772103424885,3.8101834,87.373,87.334,3.81756248]
[1772103426090,3.8101834,87.396,87.341,3.81756248]
[1772103426289,3.8101834,87.396,87.351,3.81756248]
[1772103427785,3.8101834,87.396,87.353,3.81756248]
[1772103430390,3.8101834,87.395,87.353,3.81756248]
[1772103430597,3.8101834,87.389,87.341,3.81756248]
[1772103431993,3.8101834,87.387,87.341,3.81756248]
[1772103434792,3.8101834,87.387,87.342,3.81756248]
[1772103435891,3.8101834,87.387,87.344,3.81756248]
[1772103437792,3.8101834,87.399,87.351,3.81756248]
[1772103438994,3.8101834,87.399,87.353,3.81756248]
[1772103439395,17.12664253,87.41,87.353,3.81756248]
[1772103439596,3.8101834,87.409,87.353,3.81756248]
[1772103439896,3.8101834,87.409,87.364,3.81756248]
[1772103440989,3.8101834,87.409,87.366,3.81756248]
[1772103441994,3.8101834,87.399,87.351,3.81756248]
[1772103442896,3.8101834,87.399,87.355,3.81756248]
[1772103443496,3.8101834,87.399,87.35,3.02045913]
[1772103443497,3.8101834,87.399,87.356,14.11976248]
[1772103443795,3.8101834,87.399,87.357,3.81756248]
[1772103445294,3.8101834,87.399,87.361,3.81756248]
[1772103447700,3.65007944,87.389,87.35,3.74899989]
[1772103449001,3.65007944,87.389,87.351,10.3028]
[1772103449804,3.65007944,87.389,87.35,3.74899989]
[1772103450107,3.65007944,87.389,87.338,3.74899989]
[1772103450802,3.65007944,87.389,87.351,10.3028]
[1772103453509,3.02045913,87.4,87.363,3.74899989]
[1772103453702,3.02045913,87.39,87.363,3.74899989]
[1772103453902,3.02045913,87.39,87.341,3.74899989]
[1772103454408,3.02045913,87.39,87.34,3.02045913]
[1772103454409,3.65007944,87.399,87.355,3.74899989]
[1772103456010,3.65007944,87.399,87.356,10.3022]
[1772103456208,3.65007944,87.399,87.357,3.74899989]
[1772103457108,3.02045913,87.39,87.351,3.6507968]
[1772103457510,6.80997544,87.39,87.351,3.6507968]
[1772103457706,3.78951631,87.39,87.353,13.9533968]
[1772103458008,3.78951631,87.39,87.354,3.6507968]
[1772103460309,6.80997544,87.39,87.354,3.6507968]
[1772103460509,3.78951631,87.39,87.354,3.6507968]
[1772103462012,3.78951631,87.39,87.355,10.3024]
[1772103465612,3.78951631,87.389,87.348,10.3032]
[1772103466514,3.02045913,87.38,87.348,10.3032]
[1772103466816,3.02045913,87.38,87.342,3.6507968]
[1772103467211,3.78951631,87.387,87.342,3.6507968]
[1772103468118,3.78951631,87.387,87.344,3.6507968]
[1772103470018,3.78951631,87.387,87.348,3.6507968]
[1772103474827,3.70110776,87.409,87.352,3.77025119]
[1772103476026,3.66687809,87.407,87.361,3.6341155]
[1772103476915,3.66687809,87.407,87.365,3.6341155]
[1772103478023,3.01575629,87.4,87.365,3.6341155]
[1772103479626,3.66687809,87.407,87.368,3.6341155]
[1772103479929,3.66687809,87.419,87.368,3.6341155]
[1772103480822,3.66687809,87.419,87.377,3.6341155]
[1772103481225,3.66687809,87.409,87.361,3.6341155]
[1772103481421,6.68263438,87.4,87.363,3.6341155]
[1772103483227,3.66687809,87.4,87.363,3.6341155]
[1772103487525,6.68263438,87.4,87.363,3.6341155]
[1772103488524,3.66687809,87.399,87.363,3.6341155]
[1772103489428,3.66687809,87.399,87.353,13.9367155]
[1772103489828,3.66687809,87.399,87.354,3.6341155]
[1772103490225,3.66687809,87.399,87.356,3.6341155]
[1772103492226,3.66687809,87.399,87.358,10.302]
[1772103492433,3.66687809,87.399,87.359,3.6341155]
[1772103493431,8.63000704,87.435,87.359,3.6341155]
[1772103493623,3.01575629,87.42,87.348,28.51839288]
[1772103493829,5.56087667,87.409,87.36,3.01575629]
[1772103494233,5.56087667,87.409,87.366,10.301]
[1772103503038,5.56087667,87.409,87.373,10.3002]
[1772103504943,5.3115087,87.399,87.34,3.01575629]
[1772103506039,5.3115087,87.399,87.353,10.3025]
[1772103508447,5.3115087,87.399,87.361,10.3017]
[1772103512646,5.3115087,87.399,87.367,10.301]
[1772103513651,5.3115087,87.399,87.35,3.01575629]
[1772103514643,5.3115087,87.399,87.359,21.38146807]
[1772103514944,5.3115087,87.399,87.359,31.68336807]
[1772103515347,5.3115087,87.399,87.36,21.38146807]
[1772103516245,5.3115087,87.399,87.368,21.38146807]
[1772103517252,5.3115087,87.399,87.369,21.38146807]
[1772103518253,5.3115087,87.399,87.37,21.38146807]
[1772103518648,3.01575629,87.39,87.366,21.40082021]
[1772103518948,3.01575629,87.39,87.348,5.34747281]
[1772103520050,3.01575629,87.39,87.351,5.34747281]
[1772103521549,10.2974,87.398,87.351,5.34747281]
[1772103521943,10.2974,87.398,87.356,5.34955637]
[1772103527055,3.01575629,87.4,87.358,5.34936444]
[1772103527556,10.2966,87.405,87.358,5.34936444]
[1772103529048,10.2966,87.405,87.361,5.35566043]
[1772103529954,3.01575629,87.39,87.342,5.35566043]
[1772103530156,3.01575629,87.38,87.342,5.35566043]
[1772103531952,10.2971,87.401,87.345,5.35349494]
[1772103532152,3.01575629,87.4,87.345,5.35349494]
[1772103533959,10.2979,87.394,87.351,5.35672034]
[1772103534552,3.01575629,87.4,87.354,5.3704773]
[1772103534752,3.01575629,87.41,87.354,5.3704773]
[1772103535153,10.2961,87.409,87.361,10.3016]
[1772103535355,3.01575629,87.42,87.362,5.3704773]
[1772103536956,10.2953,87.416,87.374,5.37702903]
[1772103538961,10.2953,87.416,87.377,5.37846082]
[1772103540261,10.2953,87.416,87.33,20.6108]
[1772103540262,3.01517786,87.43,87.38,8.39363868]
[1772103540457,3.01517786,87.43,87.381,5.37846082]
[1772103541356,3.01517786,87.44,87.381,5.37846082]
[1772103541958,3.01517786,87.44,87.391,5.38440267]
[1772103542264,3.01517786,87.45,87.391,5.38440267]
[1772103543058,10.2918,87.446,87.4,3.01517786]
[1772103543258,10.2918,87.446,87.401,5.37224008]
[1772103544059,458.64923911,87.493,87.421,5.37224008]
[1772103544261,458.64923911,87.493,87.352,160.266]
[1772103544262,3.01517786,87.51,87.451,5.37224008]
[1772103544963,3.01517786,87.5,87.451,5.37224008]
[1772103545163,3.01517786,87.51,87.451,5.37224008]
[1772103545664,5.14693185,87.52,87.461,5.38255206]
[1772103545866,3.01517786,87.51,87.461,5.38255206]
[1772103546069,3.01517786,87.5,87.449,5.38255206]
[1772103546365,3.01517786,87.49,87.449,5.38255206]
[1772103547169,10.2857,87.498,87.449,5.38255206]
[1772103551566,3.01517786,87.5,87.449,5.38255206]
[1772103552673,3.01517786,87.5,87.45,5.29596324]
[1772103553073,3.01517786,87.5,87.451,5.29596324]
[1772103553568,3.01517786,87.47,87.423,5.29596324]
[1772103553772,10.2891,87.468,87.423,5.29596324]
[1772103554775,10.2903,87.458,87.405,5.29469767]
[1772103554976,3.01517786,87.45,87.405,5.29469767]
[1772103559778,3.01517786,87.43,87.391,5.28898084]
[1772103562682,3.01517786,87.44,87.391,5.28898084]
[1772103566282,3.01517786,87.45,87.392,5.28259114]
[1772103567887,10.2915,87.448,87.394,5.28285359]
[1772103568086,3.01517786,87.45,87.394,5.28285359]
[1772103569086,3.01517786,87.45,87.397,5.26713572]
[1772103569585,3.01517786,87.45,87.358,20.604]
[1772103569586,3.01517786,87.44,87.399,5.26713572]
[1772103569976,3.01517786,87.44,87.356,11.62711685]
[1772103569977,5.14659081,87.48,87.439,5.26713572]
[1772103570178,3.01517786,87.49,87.439,5.26713572]
[1772103570179,3.01517786,87.5,87.44,3.01517786]
[1772103570380,3.01517786,87.5,87.44,8.28231358]
[1772103570583,3.01517786,87.5,87.441,5.2609036]
[1772103570989,10.287,87.486,87.441,5.2609036]
[1772103572391,3.01517786,87.47,87.428,5.2609036]
[1772103572591,5.14552652,87.5,87.417,5.2984518]
[1772103572592,3.01517786,87.46,87.417,5.2984518]
[1772103573592,3.01517786,87.47,87.417,5.2984518]
[1772103573889,3.01517786,87.47,87.41,3.01517786]
[1772103573890,10.289,87.469,87.419,5.2984518]
[1772103575191,3.01517786,87.46,87.419,5.2984518]
[1772103576690,5.14505861,87.49,87.419,5.2984518]
[1772103576895,3.01517786,87.46,87.419,5.2984518]
[1772103578798,10.2891,87.468,87.421,10.2946]
[1772103579391,3.01517786,87.46,87.421,10.2946]
[1772103580099,3.01517786,87.45,87.402,5.29567945]
[1772103580302,20.5731,87.49,87.402,5.29567945]
[1772103580303,3.01517786,87.46,87.402,5.29567945]
[1772103580497,3.01517786,87.46,87.411,5.31446508]
[1772103581900,3.01517786,87.46,87.415,5.31446508]
[1772103583706,3.01517786,87.45,87.415,5.31446508]
[1772103583906,3.01517786,87.45,87.401,5.28485466]
[1772103585802,3.01517786,87.45,87.402,5.25964863]
[1772103587003,3.01517786,87.45,87.408,5.24085669]
[1772103590204,5.14566326,87.48,87.396,5.25283115]
[1772103590404,3.01517786,87.44,87.396,5.25283115]
[1772103591705,3.01517786,87.44,87.399,5.2519267]
[1772103593910,3.01517786,87.44,87.401,5.2331701]
[1772103597311,3.01327917,87.44,87.401,5.2331701]
[1772103597710,3.01327917,87.44,87.41,5.23882169]
[1772103598005,3.01327917,87.45,87.41,5.23882169]
[1772103598911,10.2915,87.448,87.41,5.23882169]
[1772103601312,10.2915,87.448,87.398,5.30587664]
[1772103601709,3.01327917,87.44,87.398,5.30587664]